fUSD/lending_fUSD_20260507
["ID","MTS","AMOUNT","RATE_DAILY","PERIOD"]
[421788969,1778159543000,-999.99,0.00017728,2]
[421788968,1778159543000,-299.99,0.00017728,4]
[421788967,1778159543000,-9999.99,0.00017728,2]
[421788972,1778159543000,-15761.03,0.00017728,2]
[421788970,1778159543000,-325.2,0.00017728,2]
[421788973,1778159543000,-150.99,0.00017728,2]
[421788975,1778159543000,-320.31147582,0.00019007,2]
[421788974,1778159543000,-167.63152131,0.0001837,2]
[421788977,1778159543000,-177.529636,0.00019779,2]
[421788964,1778159543000,-6483.92,0.00016771,2]
[421788988,1778159543000,-1222.0,0.00021901,2]
[421788976,1778159543000,-292.691269,0.000196,7]
[421788979,1778159543000,-188.0,0.0002,2]
[421788983,1778159543000,-164.0,0.00021,2]
[421788989,1778159543000,-5000.0,0.00021918,2]
[421788978,1778159543000,-164.0,0.0002,2]
[421788981,1778159543000,-317.0,0.0002,2]
[421788980,1778159543000,-5512.98,0.0002,2]
[421788986,1778159543000,-279.700248,0.00021459,7]
[421788985,1778159543000,-317.0,0.00021,2]
[421788982,1778159543000,-214.63993676,0.00020929,2]
[421788990,1778159543000,-151.0,0.00021918,2]
[421788932,1778159543000,-2840772.60970268,0.00015,2]
[421788984,1778159543000,-188.0,0.00021,2]
[421788961,1778159543000,-222.298615,0.00016438,2]
[421788987,1778159543000,-213.54098388,0.00021722,7]
[421788959,1778159543000,-222.298615,0.00016438,2]
[421788963,1778159543000,-185.54,0.00016712,2]
[421788931,1778159543000,-300.0,0.00014999,2]
[421788941,1778159543000,-1500.0,0.00015168,2]
[421788933,1778159543000,-151.0,0.00015,2]
[421788942,1778159543000,-150.0,0.00015206,2]
[421788939,1778159543000,-151.0,0.00015,2]
[421788937,1778159543000,-151.0,0.00015,2]
[421788936,1778159543000,-151.0,0.00015,2]
[421788935,1778159543000,-151.0,0.00015,2]
[421788938,1778159543000,-177.225335,0.00015,2]
[421788943,1778159543000,-214.67231335,0.00015206,2]
[421788945,1778159543000,-255.0,0.00015537,2]
[421788947,1778159543000,-983.7392912,0.00015716,2]
[421788944,1778159543000,-1500.0,0.00015268,2]
[421788934,1778159543000,-234.015469,0.00015,2]
[421788957,1778159543000,-222.298615,0.00016438,2]
[421788946,1778159543000,-1006.48136939,0.00015716,2]
[421788958,1778159543000,-222.298615,0.00016438,2]
[421788960,1778159543000,-222.298615,0.00016438,2]
[421788956,1778159543000,-222.298615,0.00016438,2]
[421788955,1778159543000,-222.298615,0.00016438,2]
[421788954,1778159543000,-222.298615,0.00016438,2]
[421788953,1778159543000,-155.0,0.0001637,2]
[421788952,1778159543000,-2313.94691139,0.00016364,2]
[421788950,1778159543000,-3292.0,0.00015971,2]
[421788948,1778159543000,-2000.0,0.00015816,2]
[421788949,1778159543000,-327.0,0.00015874,2]
[421788951,1778159543000,-500.0,0.00016153,2]
[421789029,1778159544000,-151.0,0.00025549,2]
[421789030,1778159544000,-452.02712465,0.00025933,2]
[421789036,1778159544000,-500.0,0.00027137,2]
[421789038,1778159544000,-777.490497,0.00027397,2]
[421789031,1778159544000,-14926.62091659,0.000269,2]
[421789019,1778159544000,-161.69,0.00025523,2]
[421789022,1778159544000,-151.0,0.00025549,2]
[421789021,1778159544000,-569812.1827807,0.00025549,2]
[421789024,1778159544000,-222.298615,0.00025549,2]
[421789020,1778159544000,-1000.0,0.00025545,2]
[421789033,1778159544000,-977.84439096,0.000269,2]
[421789025,1778159544000,-222.298615,0.00025549,2]
[421789028,1778159544000,-151.0,0.00025549,2]
[421789042,1778159544000,-777.490497,0.00027397,2]
[421789039,1778159544000,-777.490497,0.00027397,2]
[421789032,1778159544000,-433.51134911,0.000269,2]
[421789035,1778159544000,-476.44,0.00027,7]
[421789037,1778159544000,-777.490497,0.00027397,2]
[421789034,1778159544000,-296.1174454,0.000269,2]
[421789041,1778159544000,-777.490497,0.00027397,2]
[421789043,1778159544000,-777.490497,0.00027397,2]
[421789048,1778159544000,-777.490497,0.00027397,2]
[421789045,1778159544000,-777.490497,0.00027397,2]
[421789046,1778159544000,-777.490497,0.00027397,2]
[421789044,1778159544000,-777.490497,0.00027397,2]
[421789051,1778159544000,-158.879962,0.00027397,2]
[421789040,1778159544000,-777.490497,0.00027397,2]
[421789026,1778159544000,-222.298615,0.00025549,2]
[421789050,1778159544000,-158.879962,0.00027397,2]
[421789018,1778159544000,-161.93,0.00025523,2]
[421788992,1778159544000,-165.67,0.00022,2]
[421788991,1778159544000,-164.0,0.00022,2]
[421788994,1778159544000,-317.0,0.00022,2]
[421788995,1778159544000,-807.0,0.00022093,5]
[421789002,1778159544000,-317.0,0.00024,2]
[421789000,1778159544000,-164.0,0.00024,2]
[421788997,1778159544000,-164.0,0.00023,2]
[421788999,1778159544000,-317.0,0.00023,2]
[421788993,1778159544000,-188.0,0.00022,2]
[421789001,1778159544000,-188.0,0.00024,2]
[421788998,1778159544000,-188.0,0.00023,2]
[421788996,1778159544000,-476.44,0.000229,7]
[421789004,1778159544000,-161.93,0.00024658,2]
[421789014,1778159544000,-177.94081992,0.00025342,14]
[421789003,1778159544000,-1000.0,0.00024658,2]
[421789005,1778159544000,-161.69,0.00024658,2]
[421789010,1778159544000,-196.0,0.00025,2]
[421789007,1778159544000,-161.93,0.00024946,7]
[421789009,1778159544000,-172.0,0.00025,2]
[421789008,1778159544000,-161.69,0.00024946,7]
[421789006,1778159544000,-167.63152131,0.0002484,2]
[421789012,1778159544000,-161.93,0.00025234,30]
[421789011,1778159544000,-329.0,0.00025,2]
[421789013,1778159544000,-161.69,0.00025234,30]
[421789015,1778159544000,-127090.844137,0.00025415,2]
[421789017,1778159544000,-25875.073157,0.00025415,2]
[421789027,1778159544000,-151.0,0.00025549,2]
[421789016,1778159544000,-11940.5037995,0.00025415,2]
[421789047,1778159544000,-777.490497,0.00027397,2]
[421789023,1778159544000,-222.298615,0.00025549,2]
[421789053,1778159544000,-158.879962,0.00027397,2]
[421789083,1778159544000,-200.37,0.000287,7]
[421789085,1778159544000,-153.99,0.00028722,30]
[421789086,1778159544000,-154.22,0.00028769,2]
[421789082,1778159544000,-5291.36,0.000287,14]
[421789088,1778159544000,-154.22,0.00028815,7]
[421789089,1778159544000,-153.99,0.00028815,7]
[421789099,1778159544000,-154.22,0.00029001,30]
[421789098,1778159544000,-500.0,0.00029,4]
[421789097,1778159544000,-17930.6,0.00029,7]
[421789094,1778159544000,-153.99,0.00028908,2]
[421789095,1778159544000,-154.22,0.00028954,7]
[421789091,1778159544000,-153.99,0.00028861,30]
[421789096,1778159544000,-153.99,0.00028954,7]
[421789090,1778159544000,-154.22,0.00028861,30]
[421789093,1778159544000,-154.22,0.00028908,2]
[421789092,1778159544000,-476.44,0.000289,7]
[421789101,1778159544000,-500.0,0.00029025,4]
[421789105,1778159544000,-153.99,0.00029093,7]
[421789107,1778159544000,-154.22,0.0002914,30]
[421789104,1778159544000,-154.22,0.00029093,7]
[421789106,1778159544000,-2151.83,0.000291,7]
[421789111,1778159544000,-154.22,0.00029232,7]
[421789102,1778159544000,-154.22,0.00029047,2]
[421789100,1778159544000,-153.99,0.00029001,30]
[421789108,1778159544000,-153.99,0.0002914,30]
[421789110,1778159544000,-153.99,0.00029186,2]
[421789049,1778159544000,-158.879962,0.00027397,2]
[421789084,1778159544000,-154.22,0.00028722,30]
[421789081,1778159544000,-153.99,0.00028676,7]
[421789103,1778159544000,-153.99,0.00029047,2]
[421789078,1778159544000,-154.22,0.0002863,2]
[421789087,1778159544000,-153.99,0.00028769,2]
[421789052,1778159544000,-158.879962,0.00027397,2]
[421789063,1778159544000,-151.0,0.00027397,2]
[421789060,1778159544000,-158.879962,0.00027397,2]
[421789061,1778159544000,-151.0,0.00027397,2]
[421789059,1778159544000,-158.879962,0.00027397,2]
[421789054,1778159544000,-158.879962,0.00027397,2]
[421789062,1778159544000,-151.0,0.00027397,2]
[421789057,1778159544000,-158.879962,0.00027397,2]
[421789064,1778159544000,-5236.22,0.00027397,10]
[421789056,1778159544000,-158.879962,0.00027397,2]
[421789055,1778159544000,-158.879962,0.00027397,2]
[421789065,1778159544000,-9985.13,0.00027397,10]
[421789066,1778159544000,-8320.94,0.00027397,10]
[421789058,1778159544000,-158.879962,0.00027397,2]
[421789073,1778159544000,-214.63993676,0.000274,10]
[421789067,1778159544000,-6934.12,0.00027397,10]
[421789079,1778159544000,-153.99,0.0002863,2]
[421789109,1778159544000,-154.22,0.00029186,2]
[421789075,1778159544000,-512.70147277,0.00027998,2]
[421789071,1778159544000,-200.37,0.000274,7]
[421789077,1778159544000,-200.0,0.00028431,2]
[421789074,1778159544000,-500.0,0.00027766,2]
[421789076,1778159544000,-500.0,0.00028396,3]
[421789072,1778159544000,-214.63993676,0.000274,7]
[421789070,1778159544000,-17930.6,0.000274,7]
[421789080,1778159544000,-154.22,0.00028676,7]
[421789068,1778159544000,-2151.83,0.000274,7]
[421789069,1778159544000,-5291.36,0.000274,14]
[421789150,1778159545000,-151.0,0.00032877,7]
[421789142,1778159545000,-500.0,0.00032161,120]
[421789135,1778159545000,-304.19990693,0.00032,120]
[421789144,1778159545000,-317.0,0.00032166,30]
[421789156,1778159545000,-164.0,0.0003316,30]
[421789145,1778159545000,-500.0,0.00032172,7]
[421789147,1778159545000,-2151.83,0.000326,7]
[421789149,1778159545000,-500.0,0.00032801,8]
[421789148,1778159545000,-5291.36,0.000326,14]
[421789151,1778159545000,-151.0,0.00032877,7]
[421789139,1778159545000,-500.0,0.00032161,120]
[421789146,1778159545000,-150.0,0.00032562,2]
[421789157,1778159545000,-188.0,0.0003316,30]
[421789155,1778159545000,-1149.34355082,0.00033,120]
[421789152,1778159545000,-151.0,0.00032877,7]
[421789153,1778159545000,-200.37,0.000329,30]
[421789160,1778159545000,-1149.34355082,0.000339,120]
[421789159,1778159545000,-500.0,0.0003343,8]
[421789163,1778159545000,-164.0,0.0003416,30]
[421789161,1778159545000,-200.0,0.00033998,10]
[421789158,1778159545000,-317.0,0.00033166,30]
[421789164,1778159545000,-188.0,0.0003416,30]
[421789141,1778159545000,-500.0,0.00032161,120]
[421789167,1778159545000,-150.0,0.0003419,2]
[421789154,1778159545000,-17930.6,0.00033,7]
[421789143,1778159545000,-500.0,0.00032161,120]
[421789124,1778159545000,-500.0,0.00030913,6]
[421789138,1778159545000,-500.0,0.00032161,120]
[421789165,1778159545000,-317.0,0.00034166,30]
[421789112,1778159545000,-154.12,0.00029232,7]
[421789114,1778159545000,-919.0,0.00029591,10]
[421789123,1778159545000,-17930.6,0.000303,7]
[421789122,1778159545000,-500.0,0.00030284,5]
[421789120,1778159545000,-192.26329149,0.00030137,40]
[421789121,1778159545000,-200.37,0.000302,7]
[421789113,1778159545000,-150.0,0.00029534,2]
[421789116,1778159545000,-427.0,0.00029591,10]
[421789117,1778159545000,-500.0,0.00029654,4]
[421789118,1778159545000,-1009.0,0.00029797,5]
[421789140,1778159545000,-500.0,0.00032161,120]
[421789119,1778159545000,-5291.36,0.0003,14]
[421789129,1778159545000,-160.0,0.00031166,30]
[421789128,1778159545000,-188.0,0.0003116,30]
[421789125,1778159545000,-214.63993676,0.00031,7]
[421789127,1778159545000,-164.0,0.0003116,30]
[421789126,1778159545000,-150.0,0.00031011,2]
[421789132,1778159545000,-500.0,0.00031542,6]
[421789130,1778159545000,-317.0,0.00031166,30]
[421789133,1778159545000,-1149.34355082,0.00032,120]
[421789134,1778159545000,-301.96192584,0.00032,120]
[421789136,1778159545000,-164.0,0.0003216,30]
[421789137,1778159545000,-188.0,0.0003216,30]
[421789131,1778159545000,-167.63152131,0.0003131,2]
[421789162,1778159545000,-500.0,0.0003406,9]
[421789115,1778159545000,-496.0,0.00029591,10]
[421789168,1778159545000,-500.0,0.00034689,10]
[421789197,1778159545000,-500.0,0.00035616,7]
[421789198,1778159545000,-500.0,0.00035616,7]
[421789196,1778159545000,-500.0,0.00035616,7]
[421789200,1778159545000,-366.80077249,0.00035616,7]
[421789199,1778159545000,-500.0,0.00035616,7]
[421789204,1778159545000,-500.0,0.00035616,7]
[421789203,1778159545000,-500.0,0.00035616,7]
[421789212,1778159545000,-500.0,0.00035616,7]
[421789208,1778159545000,-500.0,0.00035616,7]
[421789207,1778159545000,-500.0,0.00035616,7]
[421789210,1778159545000,-500.0,0.00035616,7]
[421789213,1778159545000,-500.0,0.00035616,7]
[421789211,1778159545000,-500.0,0.00035616,7]
[421789206,1778159545000,-500.0,0.00035616,7]
[421789209,1778159545000,-500.0,0.00035616,7]
[421789215,1778159545000,-500.0,0.00035616,7]
[421789221,1778159545000,-500.0,0.00035616,7]
[421789222,1778159545000,-500.0,0.00035616,7]
[421789218,1778159545000,-500.0,0.00035616,7]
[421789216,1778159545000,-500.0,0.00035616,7]
[421789214,1778159545000,-500.0,0.00035616,7]
[421789217,1778159545000,-159.99295759,0.00035616,7]
[421789219,1778159545000,-500.0,0.00035616,7]
[421789220,1778159545000,-500.0,0.00035616,7]
[421789166,1778159545000,-151.0,0.00034182,7]
[421789202,1778159545000,-500.0,0.00035616,7]
[421789201,1778159545000,-500.0,0.00035616,7]
[421789205,1778159545000,-500.0,0.00035616,7]
[421789194,1778159545000,-500.0,0.00035616,7]
[421789177,1778159545000,-500.0,0.00035318,10]
[421789195,1778159545000,-500.0,0.00035616,7]
[421789179,1778159545000,-500.0,0.00035616,7]
[421789178,1778159545000,-164.04984016,0.00035616,60]
[421789169,1778159545000,-1149.34355082,0.00035,120]
[421789180,1778159545000,-500.0,0.00035616,7]
[421789170,1778159545000,-200000.0,0.00035,2]
[421789171,1778159545000,-164.0,0.0003516,30]
[421789174,1778159545000,-5291.36,0.000352,14]
[421789176,1778159545000,-200.37,0.000353,30]
[421789173,1778159545000,-317.0,0.00035166,30]
[421789175,1778159545000,-3136.87931358,0.00035238,2]
[421789181,1778159545000,-500.0,0.00035616,7]
[421789172,1778159545000,-188.0,0.0003516,30]
[421789183,1778159545000,-500.0,0.00035616,7]
[421789193,1778159545000,-500.0,0.00035616,7]
[421789186,1778159545000,-500.0,0.00035616,7]
[421789185,1778159545000,-500.0,0.00035616,7]
[421789190,1778159545000,-500.0,0.00035616,7]
[421789191,1778159545000,-500.0,0.00035616,7]
[421789192,1778159545000,-500.0,0.00035616,7]
[421789182,1778159545000,-500.0,0.00035616,7]
[421789184,1778159545000,-500.0,0.00035616,7]
[421789187,1778159545000,-500.0,0.00035616,7]
[421789188,1778159545000,-500.0,0.00035616,7]
[421789189,1778159545000,-500.0,0.00035616,7]
[421789263,1778159546000,-1000.0,0.0003672,81]
[421789274,1778159546000,-168.15549052,0.00037,2]
[421789264,1778159546000,-1000.0,0.0003672,81]
[421789260,1778159546000,-200.50552662,0.00036625,2]
[421789257,1778159546000,-500.0,0.00036577,12]
[421789256,1778159546000,-6678.37700795,0.000365,30]
[421789262,1778159546000,-1000.0,0.0003672,81]
[421789253,1778159546000,-317.0,0.00036166,30]
[421789261,1778159546000,-501.85498623,0.00036712,5]
[421789258,1778159546000,-476.44,0.000366,7]
[421789265,1778159546000,-1000.0,0.0003672,81]
[421789259,1778159546000,-234.0,0.00036624,2]
[421789270,1778159546000,-6241.97301631,0.0003698,2]
[421789275,1778159546000,-1005.70106929,0.00037,2]
[421789272,1778159546000,-160.0,0.00037,63]
[421789269,1778159546000,-55080.43954117,0.0003698,2]
[421789267,1778159546000,-344.0,0.00036912,2]
[421789266,1778159546000,-47517.53808494,0.0003673,2]
[421789271,1778159546000,-56722.71960129,0.0003699,2]
[421789268,1778159546000,-56722.71960129,0.00036915,2]
[421789276,1778159546000,-200.0,0.00037,10]
[421789285,1778159546000,-2236.95670848,0.00037087,7]
[421789286,1778159546000,-2319.72410669,0.00037087,7]
[421789284,1778159546000,-2157.14243826,0.00037087,7]
[421789277,1778159546000,-340.0,0.00037005,2]
[421789278,1778159546000,-340.0,0.00037005,2]
[421789255,1778159546000,-500.0,0.000364,5]
[421789273,1778159546000,-214.63993676,0.00037,30]
[421789254,1778159546000,-2600.78,0.00036253,10]
[421789225,1778159546000,-500.0,0.00035616,7]
[421789251,1778159546000,-164.0,0.0003616,30]
[421789224,1778159546000,-409.99295759,0.00035616,7]
[421789223,1778159546000,-500.0,0.00035616,7]
[421789226,1778159546000,-500.0,0.00035616,7]
[421789279,1778159546000,-340.0,0.00037005,2]
[421789227,1778159546000,-409.99295759,0.00035616,7]
[421789228,1778159546000,-500.0,0.00035616,7]
[421789231,1778159546000,-500.0,0.00035616,7]
[421789230,1778159546000,-409.99295759,0.00035616,7]
[421789232,1778159546000,-500.0,0.00035616,7]
[421789234,1778159546000,-500.0,0.00035616,7]
[421789233,1778159546000,-409.99295759,0.00035616,7]
[421789236,1778159546000,-409.99295759,0.00035616,7]
[421789235,1778159546000,-500.0,0.00035616,7]
[421789252,1778159546000,-188.0,0.0003616,30]
[421789229,1778159546000,-500.0,0.00035616,7]
[421789238,1778159546000,-500.0,0.00035616,7]
[421789248,1778159546000,-191.62454006,0.00036,120]
[421789241,1778159546000,-500.0,0.00035616,7]
[421789239,1778159546000,-409.99295759,0.00035616,7]
[421789244,1778159546000,-150.0,0.00035899,2]
[421789237,1778159546000,-500.0,0.00035616,7]
[421789242,1778159546000,-500.0,0.00035616,5]
[421789240,1778159546000,-500.0,0.00035616,7]
[421789245,1778159546000,-500.0,0.00035947,11]
[421789247,1778159546000,-1149.34355082,0.00036,120]
[421789243,1778159546000,-17930.6,0.000357,7]
[421789246,1778159546000,-1412.95445817,0.0003598,2]
[421789250,1778159546000,-151.0,0.00036153,30]
[421789249,1778159546000,-214.63993676,0.00036,7]
[421789280,1778159546000,-6408.35531532,0.00037019,2]
[421789298,1778159546000,-518.5,0.00037092,30]
[421789282,1778159546000,-883.32876101,0.0003707,2]
[421789320,1778159546000,-642.94,0.00037092,30]
[421789317,1778159546000,-620.0,0.00037092,30]
[421789321,1778159546000,-220.0,0.00037092,30]
[421789316,1778159546000,-151.0,0.00037092,30]
[421789318,1778159546000,-500.0,0.00037092,30]
[421789322,1778159546000,-500.0,0.00037092,30]
[421789319,1778159546000,-151.0,0.00037092,30]
[421789327,1778159546000,-151.0,0.00037092,30]
[421789326,1778159546000,-500.0,0.00037092,30]
[421789329,1778159546000,-666.72878,0.00037092,30]
[421789328,1778159546000,-220.0,0.00037092,30]
[421789338,1778159546000,-151.0,0.00037092,30]
[421789337,1778159546000,-500.0,0.00037092,30]
[421789323,1778159546000,-151.0,0.00037092,30]
[421789283,1778159546000,-2080.17592889,0.00037087,7]
[421789331,1778159546000,-151.0,0.00037092,30]
[421789333,1778159546000,-500.0,0.00037092,30]
[421789332,1778159546000,-151.0,0.00037092,30]
[421789334,1778159546000,-151.0,0.00037092,30]
[421789336,1778159546000,-500.0,0.00037092,30]
[421789340,1778159546000,-500.0,0.00037092,30]
[421789339,1778159546000,-151.0,0.00037092,30]
[421789341,1778159546000,-500.0,0.00037092,30]
[421789342,1778159546000,-151.0,0.00037092,30]
[421789343,1778159546000,-500.0,0.00037092,30]
[421789346,1778159546000,-151.0,0.00037092,30]
[421789344,1778159546000,-151.0,0.00037092,30]
[421789345,1778159546000,-500.0,0.00037092,30]
[421789335,1778159546000,-151.0,0.00037092,30]
[421789315,1778159546000,-167.81310154,0.00037092,30]
[421789330,1778159546000,-500.0,0.00037092,30]
[421789325,1778159546000,-666.72878,0.00037092,30]
[421789313,1778159546000,-220.0,0.00037092,30]
[421789281,1778159546000,-6408.35531532,0.00037061,2]
[421789288,1778159546000,-1831.76446852,0.00037087,7]
[421789287,1778159546000,-2405.55389864,0.00037087,7]
[421789289,1778159546000,-6241.97301631,0.00037089,2]
[421789290,1778159546000,-203.55288882,0.00037092,30]
[421789296,1778159546000,-7142.856,0.00037092,30]
[421789291,1778159546000,-6888.0,0.00037092,30]
[421789297,1778159546000,-1030.0,0.00037092,30]
[421789299,1778159546000,-151.0,0.00037092,30]
[421789293,1778159546000,-500.0,0.00037092,30]
[421789294,1778159546000,-500.0,0.00037092,30]
[421789300,1778159546000,-500.0,0.00037092,30]
[421789295,1778159546000,-165.51017078,0.00037092,30]
[421789292,1778159546000,-575.74315804,0.00037092,30]
[421789308,1778159546000,-151.0,0.00037092,30]
[421789302,1778159546000,-537.6845,0.00037092,30]
[421789314,1778159546000,-200.0,0.00037092,30]
[421789303,1778159546000,-7407.141672,0.00037092,30]
[421789311,1778159546000,-151.0,0.00037092,30]
[421789307,1778159546000,-537.6845,0.00037092,30]
[421789310,1778159546000,-200.0,0.00037092,30]
[421789324,1778159546000,-220.0,0.00037092,30]
[421789309,1778159546000,-500.0,0.00037092,30]
[421789312,1778159546000,-500.0,0.00037092,30]
[421789304,1778159546000,-151.0,0.00037092,30]
[421789305,1778159546000,-500.0,0.00037092,30]
[421789301,1778159546000,-1068.11,0.00037092,30]
[421789306,1778159546000,-1107.63007,0.00037092,30]
[421789364,1778159547000,-321.04705582,0.00037092,30]
[421789363,1778159547000,-151.0,0.00037092,30]
[421789369,1778159547000,-161.04941715,0.00037092,30]
[421789371,1778159547000,-286.62081144,0.00037092,30]
[421789367,1778159547000,-705.99609702,0.00037092,30]
[421789365,1778159547000,-151.0,0.00037092,30]
[421789366,1778159547000,-151.0,0.00037092,30]
[421789370,1778159547000,-319.18330729,0.00037092,30]
[421789368,1778159547000,-2345.0,0.00037092,30]
[421789372,1778159547000,-151.0,0.00037092,30]
[421789374,1778159547000,-170.0,0.00037092,30]
[421789376,1778159547000,-176.29,0.00037092,30]
[421789377,1778159547000,-162.380719,0.00037092,30]
[421789373,1778159547000,-156.587,0.00037092,30]
[421789358,1778159547000,-207.44360982,0.00037092,30]
[421789349,1778159547000,-544.54252,0.00037092,30]
[421789359,1778159547000,-151.0,0.00037092,30]
[421789360,1778159547000,-500.0,0.00037092,30]
[421789355,1778159547000,-151.0,0.00037092,30]
[421789379,1778159547000,-189.57680101,0.00037092,30]
[421789356,1778159547000,-1000.0,0.00037092,30]
[421789361,1778159547000,-151.0,0.00037092,30]
[421789362,1778159547000,-500.0,0.00037092,30]
[421789353,1778159547000,-621.25589089,0.00037092,30]
[421789351,1778159547000,-151.0,0.00037092,30]
[421789354,1778159547000,-500.0,0.00037092,30]
[421789352,1778159547000,-1000.0,0.00037092,30]
[421789350,1778159547000,-500.0,0.00037092,30]
[421789347,1778159547000,-1000.0,0.00037092,30]
[421789348,1778159547000,-500.0,0.00037092,30]
[421789357,1778159547000,-500.0,0.00037092,30]
[421789381,1778159547000,-203.86501493,0.00037092,30]
[421789399,1778159547000,-44190.02448528,0.00037122,2]
[421789375,1778159547000,-162.380719,0.00037092,30]
[421789380,1778159547000,-196.59114265,0.00037092,30]
[421789412,1778159547000,-727.0,0.00011919,2]
[421789411,1778159547000,-380.52932165,0.00037185,2]
[421789407,1778159547000,-514870.21433799,0.00037185,2]
[421789406,1778159547000,-44190.02448528,0.00037185,2]
[421789405,1778159547000,-55080.43954117,0.00037182,2]
[421789400,1778159547000,-12816.71063065,0.00037137,2]
[421789410,1778159547000,-26403.79226853,0.00037185,2]
[421789403,1778159547000,-317.0,0.00037166,30]
[421789404,1778159547000,-19552.97946342,0.00037182,2]
[421789409,1778159547000,-2499.51044018,0.00037185,2]
[421789402,1778159547000,-188.0,0.0003716,30]
[421789408,1778159547000,-928.0,0.00021901,2]
[421789398,1778159547000,-503.03127867,0.00037103,2]
[421789395,1778159547000,-251.0,0.000371,120]
[421789401,1778159547000,-164.0,0.0003716,30]
[421789394,1778159547000,-256.0,0.000371,120]
[421789378,1778159547000,-182.81273,0.00037092,30]
[421789397,1778159547000,-300.0,0.000371,10]
[421789382,1778159547000,-211.40802048,0.00037092,30]
[421789383,1778159547000,-219.23011724,0.00037092,30]
[421789385,1778159547000,-151.0,0.00037093,2]
[421789386,1778159547000,-1000.0,0.00037093,86]
[421789388,1778159547000,-200.0,0.00037093,2]
[421789384,1778159547000,-227.34163158,0.00037092,30]
[421789389,1778159547000,-1899803.70998441,0.00037093,2]
[421789391,1778159547000,-310.0,0.00037096,43]
[421789396,1778159547000,-1149.34355082,0.000371,120]
[421789392,1778159547000,-11019.06302537,0.00037099,2]
[421789390,1778159547000,-428852.53089009,0.00037093,2]
[421789393,1778159547000,-185.0,0.000371,120]
[421789387,1778159547000,-1000.0,0.00037093,86]
[421789413,1778159548000,-2007.3954,0.000119,2]
[421789414,1778159835000,500.0,0.00029452,120]
[421789415,1778159836000,500.0,0.00028767,120]
[421789428,1778159951000,500.0,0.00029233,120]
[421789427,1778159951000,500.0,0.00028082,120]
[421789429,1778159962000,2500.0,0.00030137,120]
[421789436,1778160240000,-227.75551325,0.00011675,2]
[421789445,1778160327000,-1000.0,0.00011999,2]
[421789440,1778160327000,-210.67448675,0.00011675,2]
[421789441,1778160327000,-250.0,0.0001173,2]
[421789443,1778160327000,-1273.0,0.00011919,2]
[421789442,1778160327000,-500.0,0.00011785,2]
[421789444,1778160327000,-1000.0,0.00011999,2]
[421789452,1778160327000,-250.0,0.00012842,2]
[421789447,1778160327000,-1000.0,0.00011999,2]
[421789448,1778160327000,-1000.0,0.00011999,2]
[421789449,1778160327000,-1000.0,0.00011999,2]
[421789450,1778160327000,-205.89508693,0.00011999,2]
[421789451,1778160327000,-250.0,0.00012099,2]
[421789453,1778160327000,-496.42707054,0.00013117,2]
[421789446,1778160327000,-1000.0,0.00011999,2]
[421789455,1778160349000,-438.43,0.00013134,2]
[421789461,1778160445000,336.102982,0.00026849,120]